[Event "*** SCC Grand Prix: Titled Tuesday Blitz"]
[Site "Chess.com"]
[Date "2020.06.02"]
[Round "2"]
[White "Dmitry_M1"]
[Black "Iljushin_Alexey"]
[Result "0-1"]
[WhiteElo "2386"]
[BlackElo "2660"]
[TimeControl "180+1"]
[EndTime "10:16:04 PDT"]
[Termination "Iljushin_Alexey won by resignation"]

1. d4 {[%clk 0:03:00.9]} 1... e6 {[%clk 0:02:59.8]} 2. c4 {[%clk 0:03:01.2]}
2... f5 {[%clk 0:02:59.9]} 3. Nf3 {[%clk 0:02:58.3]} 3... Nf6 {[%clk 0:02:59.9]}
4. g3 {[%clk 0:02:58.5]} 4... d5 {[%clk 0:02:58.6]} 5. Bg2 {[%clk 0:02:53.3]}
5... c6 {[%clk 0:02:58.7]} 6. O-O {[%clk 0:02:53.1]} 6... Bd6 {[%clk 0:02:59.3]}
7. b3 {[%clk 0:02:49.1]} 7... Qe7 {[%clk 0:02:59]} 8. Bb2 {[%clk 0:02:47.6]}
8... b6 {[%clk 0:02:58.9]} 9. Ne5 {[%clk 0:02:40.5]} 9... Bb7 {[%clk 0:02:59]}
10. Nd2 {[%clk 0:02:28.7]} 10... O-O {[%clk 0:02:58.9]} 11. Ndf3 {[%clk
0:02:27.6]} 11... a5 {[%clk 0:02:58.9]} 12. a4 {[%clk 0:02:15.8]} 12... Na6
{[%clk 0:02:58.2]} 13. Rc1 {[%clk 0:02:15.2]} 13... Nb4 {[%clk 0:02:57.5]} 14.
Nd3 {[%clk 0:02:04.7]} 14... Ne4 {[%clk 0:02:57.1]} 15. Nxb4 {[%clk 0:02:00.6]}
15... axb4 {[%clk 0:02:56.8]} 16. Ne5 {[%clk 0:01:56.5]} 16... Bxe5 {[%clk
0:02:56.1]} 17. dxe5 {[%clk 0:01:56.3]} 17... c5 {[%clk 0:02:55.2]} 18. f3
{[%clk 0:01:45.3]} 18... Ng5 {[%clk 0:02:54.9]} 19. Qd2 {[%clk 0:01:17.4]} 19...
Rfd8 {[%clk 0:02:47.7]} 20. cxd5 {[%clk 0:01:08.3]} 20... Bxd5 {[%clk
0:02:44.9]} 21. Qe3 {[%clk 0:01:05.9]} 21... Nf7 {[%clk 0:02:41.8]} 22. Rfd1
{[%clk 0:01:00.4]} 22... h6 {[%clk 0:02:41.2]} 23. f4 {[%clk 0:00:52.4]} 23...
Bxg2 {[%clk 0:02:40.1]} 24. Kxg2 {[%clk 0:00:52.7]} 24... Rxd1 {[%clk
0:02:39.1]} 25. Rxd1 {[%clk 0:00:52.4]} 25... Rd8 {[%clk 0:02:39.6]} 26. Rxd8+
{[%clk 0:00:45.3]} 26... Nxd8 {[%clk 0:02:39.6]} 27. Qd3 {[%clk 0:00:40.7]}
27... Nc6 {[%clk 0:02:32.4]} 28. e4 {[%clk 0:00:39.7]} 28... fxe4 {[%clk
0:02:25.9]} 29. Qxe4 {[%clk 0:00:39.9]} 29... Qd7 {[%clk 0:02:26]} 30. Qc4
{[%clk 0:00:27.6]} 30... Na5 {[%clk 0:02:23.2]} 31. Qc2 {[%clk 0:00:25.6]} 31...
Qd5+ {[%clk 0:02:22.7]} 32. Kf2 {[%clk 0:00:18.9]} 32... Nxb3 {[%clk 0:02:21]}
33. f5 {[%clk 0:00:14.4]} 33... Qd2+ {[%clk 0:02:08.4]} 34. Qxd2 {[%clk
0:00:13.7]} 34... Nxd2 {[%clk 0:02:08.5]} 35. fxe6 {[%clk 0:00:12.6]} 35... Nc4
{[%clk 0:02:08.7]} 36. Bc1 {[%clk 0:00:08.5]} 36... b3 {[%clk 0:02:08]} 37. e7
{[%clk 0:00:04]} 37... Kf7 {[%clk 0:02:07.2]} 38. Bg5 {[%clk 0:00:03]} 38...
hxg5 {[%clk 0:02:06.2]} 39. e6+ {[%clk 0:00:03.4]} 39... Kxe7 {[%clk 0:02:05.8]}
0-1

[Event "*** SCC Grand Prix: Titled Tuesday Blitz"]
[Site "Chess.com"]
[Date "2020.06.02"]
[Round "2"]
[White "dosto07"]
[Black "bazar-wokzal"]
[Result "0-1"]
[WhiteElo "2107"]
[BlackElo "2391"]
[TimeControl "180+1"]
[EndTime "10:16:05 PDT"]
[Termination "bazar-wokzal won by checkmate"]

1. e4 {[%clk 0:03:00.9]} 1... Nc6 {[%clk 0:02:59.2]} 2. Nf3 {[%clk 0:03:00]}
2... d5 {[%clk 0:02:59.1]} 3. exd5 {[%clk 0:02:59.4]} 3... Qxd5 {[%clk
0:02:59.7]} 4. Nc3 {[%clk 0:02:59.6]} 4... Qa5 {[%clk 0:02:59.4]} 5. d4 {[%clk
0:02:59.3]} 5... Bg4 {[%clk 0:02:59]} 6. Bb5 {[%clk 0:02:58.1]} 6... O-O-O
{[%clk 0:02:58.9]} 7. Bxc6 {[%clk 0:02:54.5]} 7... bxc6 {[%clk 0:02:59.3]} 8. h3
{[%clk 0:02:52]} 8... Qh5 {[%clk 0:02:57.7]} 9. Qe2 {[%clk 0:02:19.2]} 9... Bxf3
{[%clk 0:02:55.8]} 10. gxf3 {[%clk 0:02:17.3]} 10... e6 {[%clk 0:02:53.7]} 11.
Qa6+ {[%clk 0:02:09.2]} 11... Kd7 {[%clk 0:02:53.4]} 12. Be3 {[%clk 0:02:05]}
12... Qxf3 {[%clk 0:02:52]} 13. Rg1 {[%clk 0:02:01.5]} 13... Bb4 {[%clk
0:02:45.7]} 14. a3 {[%clk 0:01:12.6]} 14... Bxc3+ {[%clk 0:02:44.6]} 15. bxc3
{[%clk 0:01:12.6]} 15... Ne7 {[%clk 0:02:44.8]} 16. Rb1 {[%clk 0:01:05.8]} 16...
Nf5 {[%clk 0:02:35.1]} 17. Qe2 {[%clk 0:00:57.7]} 17... Qxh3 {[%clk 0:02:30.3]}
18. Rb7 {[%clk 0:00:36.3]} 18... Rb8 {[%clk 0:02:28.7]} 19. Rb3 {[%clk
0:00:23.4]} 19... h5 {[%clk 0:02:26.7]} 20. c4 {[%clk 0:00:15]} 20... Qh2 {[%clk
0:02:17.6]} 21. Rf1 {[%clk 0:00:13.6]} 21... h4 {[%clk 0:02:13]} 22. Qf3 {[%clk
0:00:13.3]} 22... h3 {[%clk 0:02:02.8]} 23. d5 {[%clk 0:00:13.2]} 23... cxd5
{[%clk 0:01:53.5]} 24. cxd5 {[%clk 0:00:12.7]} 24... Qe5 {[%clk 0:01:33.8]} 25.
Rd3 {[%clk 0:00:09.9]} 25... Rb1+ {[%clk 0:01:28.1]} 26. Kd2 {[%clk 0:00:09.7]}
26... Rxf1 {[%clk 0:01:24.2]} 27. dxe6+ {[%clk 0:00:09.7]} 27... Kxe6 {[%clk
0:01:23.2]} 28. Bf4 {[%clk 0:00:09.7]} 28... Qe1# {[%clk 0:01:20.7]} 0-1

[Event "*** SCC Grand Prix: Titled Tuesday Blitz"]
[Site "Chess.com"]
[Date "2020.06.02"]
[Round "2"]
[White "deribas12345"]
[Black "GigaQuparadze"]
[Result "1-0"]
[WhiteElo "2560"]
[BlackElo "2832"]
[TimeControl "180+1"]
[EndTime "10:16:09 PDT"]
[Termination "deribas12345 won by resignation"]

1. d4 {[%clk 0:03:00.9]} 1... e6 {[%clk 0:02:59.4]} 2. c4 {[%clk 0:03:00.4]}
2... Nf6 {[%clk 0:02:57.4]} 3. Nc3 {[%clk 0:02:59.9]} 3... Bb4 {[%clk
0:02:57.2]} 4. f3 {[%clk 0:02:59.1]} 4... c5 {[%clk 0:02:55.6]} 5. a3 {[%clk
0:02:58.2]} 5... Bxc3+ {[%clk 0:02:55]} 6. bxc3 {[%clk 0:02:59.1]} 6... d5
{[%clk 0:02:48.3]} 7. e3 {[%clk 0:02:58.7]} 7... O-O {[%clk 0:02:47.4]} 8. Bd3
{[%clk 0:02:58.2]} 8... Nc6 {[%clk 0:02:46.4]} 9. cxd5 {[%clk 0:02:57.5]} 9...
Nxd5 {[%clk 0:02:45.4]} 10. Ne2 {[%clk 0:02:57.3]} 10... b6 {[%clk 0:02:42.1]}
11. O-O {[%clk 0:02:53.9]} 11... e5 {[%clk 0:02:40.3]} 12. e4 {[%clk 0:02:41.4]}
12... Nf6 {[%clk 0:02:37.7]} 13. d5 {[%clk 0:02:41.3]} 13... Na5 {[%clk
0:02:37.7]} 14. Bg5 {[%clk 0:02:37.5]} 14... h6 {[%clk 0:02:36.6]} 15. Bh4
{[%clk 0:02:37.5]} 15... Qd6 {[%clk 0:02:36.4]} 16. c4 {[%clk 0:02:32.6]} 16...
g5 {[%clk 0:02:35.1]} 17. Bf2 {[%clk 0:02:30.8]} 17... Nh5 {[%clk 0:02:34.8]}
18. g3 {[%clk 0:02:12.2]} 18... Ng7 {[%clk 0:02:24.2]} 19. Nc3 {[%clk 0:02:08]}
19... f5 {[%clk 0:02:23.2]} 20. Nb5 {[%clk 0:01:49.9]} 20... Qd8 {[%clk
0:02:22.1]} 21. d6 {[%clk 0:01:45.4]} 21... f4 {[%clk 0:02:18]} 22. gxf4 {[%clk
0:01:36.9]} 22... gxf4 {[%clk 0:02:17]} 23. Kh1 {[%clk 0:01:36.4]} 23... a6
{[%clk 0:02:11.6]} 24. Nc7 {[%clk 0:01:33.2]} 24... Ra7 {[%clk 0:02:11.4]} 25.
Rb1 {[%clk 0:01:22.4]} 25... Qxd6 {[%clk 0:02:05.6]} 26. Nd5 {[%clk 0:01:21.7]}
26... Rb7 {[%clk 0:02:05.2]} 27. Rg1 {[%clk 0:01:17.1]} 27... Kh7 {[%clk
0:02:04.6]} 28. Qf1 {[%clk 0:01:06.4]} 28... Rg8 {[%clk 0:02:04.3]} 29. Qg2
{[%clk 0:01:05.1]} 29... Nc6 {[%clk 0:02:03.1]} 30. Rxb6 {[%clk 0:00:44.9]}
30... Rxb6 {[%clk 0:02:00.5]} 31. Bxc5 {[%clk 0:00:44.6]} 31... Bh3 {[%clk
0:01:53.5]} 32. Qxh3 {[%clk 0:00:37.4]} 32... Nd4 {[%clk 0:01:27.6]} 33. Bxd6
{[%clk 0:00:33.4]} 33... Rxd6 {[%clk 0:01:28.5]} 34. c5 {[%clk 0:00:33.6]} 34...
Rc6 {[%clk 0:01:28.8]} 35. Ne7 {[%clk 0:00:32.9]} 35... Rxc5 {[%clk 0:01:27.5]}
36. Nxg8 {[%clk 0:00:32.6]} 36... Kxg8 {[%clk 0:01:28.4]} 37. Qxh6 {[%clk
0:00:31.7]} 37... Rc7 {[%clk 0:01:27.5]} 38. Bc4+ {[%clk 0:00:31.4]} 38... Kf8
{[%clk 0:01:26.9]} 39. Qh8+ {[%clk 0:00:31.4]} 39... Ke7 {[%clk 0:01:26.9]} 1-0

[Event "*** SCC Grand Prix: Titled Tuesday Blitz"]
[Site "Chess.com"]
[Date "2020.06.02"]
[Round "2"]
[White "nikitakhoroshev"]
[Black "kasparicy"]
[Result "1-0"]
[WhiteElo "2441"]
[BlackElo "2219"]
[TimeControl "180+1"]
[EndTime "10:16:09 PDT"]
[Termination "nikitakhoroshev won by resignation"]

1. d4 {[%clk 0:03:00.9]} 1... Nf6 {[%clk 0:02:59.3]} 2. c4 {[%clk 0:03:00.5]}
2... g6 {[%clk 0:02:58.9]} 3. Nc3 {[%clk 0:03:00.2]} 3... d5 {[%clk 0:02:58.5]}
4. Nf3 {[%clk 0:02:57.1]} 4... Bg7 {[%clk 0:02:57.9]} 5. e3 {[%clk 0:02:57.2]}
5... O-O {[%clk 0:02:57.6]} 6. Qb3 {[%clk 0:02:56.9]} 6... c5 {[%clk 0:02:58.5]}
7. cxd5 {[%clk 0:02:45.2]} 7... cxd4 {[%clk 0:02:57.5]} 8. Nxd4 {[%clk
0:02:46.1]} 8... Nbd7 {[%clk 0:02:57.5]} 9. Be2 {[%clk 0:02:45.8]} 9... Nb6
{[%clk 0:02:57.6]} 10. Bf3 {[%clk 0:02:46]} 10... Bg4 {[%clk 0:02:54.8]} 11. O-O
{[%clk 0:02:38.8]} 11... Bxf3 {[%clk 0:02:46.5]} 12. Nxf3 {[%clk 0:02:39.7]}
12... Nfxd5 {[%clk 0:02:38.6]} 13. Rd1 {[%clk 0:02:38.6]} 13... Bxc3 {[%clk
0:01:15.4]} 14. e4 {[%clk 0:02:37.6]} 14... Bg7 {[%clk 0:01:07.1]} 15. exd5
{[%clk 0:02:37.3]} 15... Qd6 {[%clk 0:01:07.2]} 16. Bg5 {[%clk 0:02:00.8]} 16...
Rfd8 {[%clk 0:01:02.7]} 17. h3 {[%clk 0:01:49]} 17... Rd7 {[%clk 0:01:01.3]} 18.
Rd2 {[%clk 0:01:44.3]} 18... Nxd5 {[%clk 0:01:00.4]} 19. Bxe7 {[%clk 0:01:35.6]}
19... Qxe7 {[%clk 0:00:57.7]} 20. Rxd5 {[%clk 0:01:35.4]} 20... Rxd5 {[%clk
0:00:57.9]} 21. Qxd5 {[%clk 0:01:36.3]} 21... Bxb2 {[%clk 0:00:55.5]} 22. Rb1
{[%clk 0:01:36.4]} 22... Rd8 {[%clk 0:00:55.9]} 23. Qb3 {[%clk 0:01:32.1]} 23...
Ba3 {[%clk 0:00:40.8]} 24. Qxb7 {[%clk 0:01:23.2]} 24... Rd1+ {[%clk 0:00:37.9]}
25. Kh2 {[%clk 0:01:22.2]} 25... Bd6+ {[%clk 0:00:32.8]} 26. g3 {[%clk
0:01:22.3]} 26... Rxb1 {[%clk 0:00:25]} 27. Qxb1 {[%clk 0:01:19]} 27... Qe2
{[%clk 0:00:25]} 28. Kg2 {[%clk 0:01:15.7]} 28... Bc5 {[%clk 0:00:25.1]} 29.
Qb8+ {[%clk 0:01:15.3]} 29... Kg7 {[%clk 0:00:24.8]} 30. Qe5+ {[%clk 0:01:15.2]}
30... Qxe5 {[%clk 0:00:25.1]} 31. Nxe5 {[%clk 0:01:16.1]} 31... Kf6 {[%clk
0:00:24.8]} 32. Nd7+ {[%clk 0:01:16]} 1-0

[Event "*** SCC Grand Prix: Titled Tuesday Blitz"]
[Site "Chess.com"]
[Date "2020.06.02"]
[Round "2"]
[White "Agent-JL"]
[Black "GMSrinath"]
[Result "0-1"]
[WhiteElo "2523"]
[BlackElo "2800"]
[TimeControl "180+1"]
[EndTime "10:16:11 PDT"]
[Termination "GMSrinath won on time"]

1. b3 {[%clk 0:03:00.9]} 1... e5 {[%clk 0:02:59]} 2. Bb2 {[%clk 0:03:00.9]} 2...
Nc6 {[%clk 0:02:59.4]} 3. e3 {[%clk 0:02:59]} 3... Nf6 {[%clk 0:02:59.4]} 4. Nf3
{[%clk 0:02:58.7]} 4... e4 {[%clk 0:02:59.6]} 5. Nd4 {[%clk 0:02:58.6]} 5...
Nxd4 {[%clk 0:02:59.9]} 6. Bxd4 {[%clk 0:02:59.5]} 6... d5 {[%clk 0:03:00.4]} 7.
c4 {[%clk 0:02:58.1]} 7... c5 {[%clk 0:03:00.3]} 8. Bxf6 {[%clk 0:02:56.3]} 8...
Qxf6 {[%clk 0:03:01.2]} 9. Nc3 {[%clk 0:02:56.9]} 9... d4 {[%clk 0:02:53.6]} 10.
exd4 {[%clk 0:02:22.5]} 10... cxd4 {[%clk 0:02:54.5]} 11. Nxe4 {[%clk
0:02:22.3]} 11... Qe5 {[%clk 0:02:42]} 12. Bd3 {[%clk 0:01:25.5]} 12... f5
{[%clk 0:02:39.9]} 13. Qh5+ {[%clk 0:01:25.2]} 13... g6 {[%clk 0:02:40.3]} 14.
Qg5 {[%clk 0:01:06]} 14... Be7 {[%clk 0:02:39.6]} 15. Qg3 {[%clk 0:00:55]} 15...
Qe6 {[%clk 0:02:38.9]} 16. f3 {[%clk 0:00:46.1]} 16... fxe4 {[%clk 0:02:36.8]}
17. Bxe4 {[%clk 0:00:47]} 17... Bd6 {[%clk 0:02:10.6]} 18. Qh4 {[%clk
0:00:38.1]} 18... Qe7 {[%clk 0:01:40.8]} 19. Qf2 {[%clk 0:00:29.1]} 19... Bf5
{[%clk 0:01:39.8]} 20. O-O {[%clk 0:00:14.4]} 20... Bxe4 {[%clk 0:01:40]} 21.
fxe4 {[%clk 0:00:15.3]} 21... O-O-O {[%clk 0:01:38.7]} 22. d3 {[%clk 0:00:15.5]}
22... Rhf8 {[%clk 0:01:37.3]} 23. Qe2 {[%clk 0:00:13.4]} 23... Qg5 {[%clk
0:01:30.6]} 24. g3 {[%clk 0:00:03.6]} 24... h5 {[%clk 0:01:28.6]} 25. Kg2 {[%clk
0:00:03.8]} 25... h4 {[%clk 0:01:27.6]} 26. Rf3 {[%clk 0:00:04.2]} 26... hxg3
{[%clk 0:01:23.3]} 27. hxg3 {[%clk 0:00:04]} 27... Rxf3 {[%clk 0:01:23.8]} 28.
Qxf3 {[%clk 0:00:04.9]} 28... Rf8 {[%clk 0:01:24.1]} 0-1

[Event "*** SCC Grand Prix: Titled Tuesday Blitz"]
[Site "Chess.com"]
[Date "2020.06.02"]
[Round "2"]
[White "maximnovik"]
[Black "PetrolulSah"]
[Result "1-0"]
[WhiteElo "2451"]
[BlackElo "2235"]
[TimeControl "180+1"]
[EndTime "10:16:14 PDT"]
[Termination "maximnovik won by resignation"]

1. d4 {[%clk 0:03:00.9]} 1... Nf6 {[%clk 0:02:59.1]} 2. Bg5 {[%clk 0:03:00.7]}
2... d5 {[%clk 0:02:58.3]} 3. e3 {[%clk 0:03:00]} 3... g6 {[%clk 0:02:56.5]} 4.
Bxf6 {[%clk 0:02:58.7]} 4... exf6 {[%clk 0:02:57.4]} 5. c4 {[%clk 0:02:58.9]}
5... Be6 {[%clk 0:02:53.1]} 6. Qb3 {[%clk 0:02:57.5]} 6... Nc6 {[%clk
0:02:44.1]} 7. Nc3 {[%clk 0:02:50.5]} 7... Na5 {[%clk 0:02:36.8]} 8. Qa4+ {[%clk
0:02:46.6]} 8... c6 {[%clk 0:02:36.5]} 9. cxd5 {[%clk 0:02:43.7]} 9... Bxd5
{[%clk 0:02:34.5]} 10. Nxd5 {[%clk 0:02:42.4]} 10... Qxd5 {[%clk 0:02:33.2]} 11.
Ne2 {[%clk 0:02:42.8]} 11... Nc4 {[%clk 0:02:15.3]} 12. Nc3 {[%clk 0:02:39]}
12... Nxb2 {[%clk 0:02:04.6]} 13. Qc2 {[%clk 0:02:34]} 13... Qa5 {[%clk
0:01:55.2]} 14. Qxb2 {[%clk 0:02:33.8]} 14... Bb4 {[%clk 0:01:55.3]} 15. Rc1
{[%clk 0:02:34.3]} 15... c5 {[%clk 0:01:53.7]} 16. d5 {[%clk 0:02:17.5]} 16...
O-O-O {[%clk 0:01:51]} 17. Bc4 {[%clk 0:02:07.9]} 17... Ba3 {[%clk 0:01:48.5]}
18. Qc2 {[%clk 0:02:06.9]} 18... Bxc1 {[%clk 0:01:45.6]} 19. Qxc1 {[%clk
0:02:06.8]} 19... a6 {[%clk 0:01:42.3]} 20. O-O {[%clk 0:02:04.6]} 20... b5
{[%clk 0:01:42.2]} 21. Be2 {[%clk 0:02:01.4]} 21... f5 {[%clk 0:01:35]} 22. Rd1
{[%clk 0:01:54]} 22... Rd6 {[%clk 0:01:29.2]} 23. a4 {[%clk 0:01:44.5]} 23... c4
{[%clk 0:01:25]} 24. axb5 {[%clk 0:01:41.3]} 24... axb5 {[%clk 0:01:24.4]} 25.
g3 {[%clk 0:01:39.1]} 25... Kc7 {[%clk 0:01:21]} 26. Bf3 {[%clk 0:01:39]} 26...
Ra8 {[%clk 0:01:18.2]} 27. Kg2 {[%clk 0:01:35.8]} 27... b4 {[%clk 0:01:11.6]}
28. Ne2 {[%clk 0:01:31.6]} 28... c3 {[%clk 0:01:06.7]} 29. Nd4 {[%clk
0:01:29.9]} 29... Qc5 {[%clk 0:00:57.2]} 30. Qc2 {[%clk 0:01:27.8]} 30... Ra3
{[%clk 0:00:49.6]} 31. Rb1 {[%clk 0:01:18.1]} 31... Rb6 {[%clk 0:00:46.3]} 32.
Nb3 {[%clk 0:01:14.9]} 32... Qd6 {[%clk 0:00:37]} 33. Qd3 {[%clk 0:01:08.4]}
33... Qc5 {[%clk 0:00:32.8]} 34. Nxc5 {[%clk 0:01:07.4]} 1-0

[Event "*** SCC Grand Prix: Titled Tuesday Blitz"]
[Site "Chess.com"]
[Date "2020.06.02"]
[Round "2"]
[White "sotochess"]
[Black "yamalchess"]
[Result "0-1"]
[WhiteElo "2235"]
[BlackElo "2452"]
[TimeControl "180+1"]
[EndTime "10:16:15 PDT"]
[Termination "yamalchess won by resignation"]

1. e4 {[%clk 0:03:00]} 1... e5 {[%clk 0:02:58.4]} 2. Nf3 {[%clk 0:02:59.6]} 2...
Nc6 {[%clk 0:02:58]} 3. Bc4 {[%clk 0:02:59.3]} 3... Nf6 {[%clk 0:02:57.1]} 4.
Ng5 {[%clk 0:02:59.4]} 4... Nxe4 {[%clk 0:02:57.2]} 5. Bxf7+ {[%clk 0:02:52.5]}
5... Ke7 {[%clk 0:02:57]} 6. d3 {[%clk 0:02:52.5]} 6... Nf6 {[%clk 0:02:55.7]}
7. Bb3 {[%clk 0:02:52.1]} 7... d5 {[%clk 0:02:55.5]} 8. O-O {[%clk 0:02:51.7]}
8... h6 {[%clk 0:02:54.5]} 9. Nf3 {[%clk 0:02:50.4]} 9... Bg4 {[%clk 0:02:54.1]}
10. h3 {[%clk 0:02:48.7]} 10... Bh5 {[%clk 0:02:45.6]} 11. Re1 {[%clk
0:02:48.2]} 11... Kf7 {[%clk 0:02:35.9]} 12. g4 {[%clk 0:02:36]} 12... Bg6
{[%clk 0:02:35.3]} 13. Nxe5+ {[%clk 0:02:35.2]} 13... Nxe5 {[%clk 0:02:34.6]}
14. Rxe5 {[%clk 0:02:35.7]} 14... Bd6 {[%clk 0:02:34.5]} 15. Re3 {[%clk
0:02:29]} 15... Rf8 {[%clk 0:02:32.8]} 16. c4 {[%clk 0:02:03.1]} 16... Kg8
{[%clk 0:02:29.2]} 17. cxd5 {[%clk 0:02:01.1]} 17... Kh8 {[%clk 0:02:27.3]} 18.
Nc3 {[%clk 0:02:00.7]} 18... Nh7 {[%clk 0:02:18]} 19. Ne4 {[%clk 0:01:31.2]}
19... Qh4 {[%clk 0:01:57.8]} 20. Qe2 {[%clk 0:01:30]} 20... Bxe4 {[%clk
0:01:44.6]} 21. dxe4 {[%clk 0:01:24.3]} 21... Bc5 {[%clk 0:01:44.1]} 22. Kg2
{[%clk 0:00:54.3]} 22... Ng5 {[%clk 0:01:37.9]} 23. Bd2 {[%clk 0:00:21.7]} 23...
Bxe3 {[%clk 0:01:32.5]} 24. Qxe3 {[%clk 0:00:16.9]} 24... Rf3 {[%clk 0:01:30.8]}
25. Qxf3 {[%clk 0:00:08.9]} 25... Nxf3 {[%clk 0:01:29.2]} 26. Kxf3 {[%clk
0:00:09]} 26... Rf8+ {[%clk 0:01:27.2]} 0-1

[Event "*** SCC Grand Prix: Titled Tuesday Blitz"]
[Site "Chess.com"]
[Date "2020.06.02"]
[Round "2"]
[White "Hrant_ChessMood"]
[Black "konradrutkowski"]
[Result "1-0"]
[WhiteElo "2933"]
[BlackElo "2334"]
[TimeControl "180+1"]
[EndTime "10:16:16 PDT"]
[Termination "Hrant_ChessMood won by resignation"]

1. e4 {[%clk 0:03:00.9]} 1... e5 {[%clk 0:02:59.3]} 2. Nf3 {[%clk 0:03:01.3]}
2... Nc6 {[%clk 0:02:58.9]} 3. Bc4 {[%clk 0:03:01.9]} 3... Nf6 {[%clk
0:02:57.8]} 4. Ng5 {[%clk 0:03:01.6]} 4... d5 {[%clk 0:02:57.5]} 5. exd5 {[%clk
0:03:02.5]} 5... Na5 {[%clk 0:02:55.4]} 6. Bb5+ {[%clk 0:03:03.2]} 6... c6
{[%clk 0:02:55.2]} 7. dxc6 {[%clk 0:03:04.1]} 7... bxc6 {[%clk 0:02:55.7]} 8.
Bd3 {[%clk 0:03:04.6]} 8... Nd5 {[%clk 0:02:54.1]} 9. Nf3 {[%clk 0:03:02.5]}
9... Bd6 {[%clk 0:02:53.6]} 10. O-O {[%clk 0:03:02.4]} 10... O-O {[%clk
0:02:51.1]} 11. Re1 {[%clk 0:03:02.8]} 11... f5 {[%clk 0:02:27.2]} 12. Nxe5
{[%clk 0:03:02.8]} 12... Qf6 {[%clk 0:02:20.4]} 13. Nf3 {[%clk 0:03:02.8]} 13...
g5 {[%clk 0:02:13.8]} 14. c4 {[%clk 0:03:02.6]} 14... Nf4 {[%clk 0:02:07.6]} 15.
Bf1 {[%clk 0:03:03]} 15... g4 {[%clk 0:02:05.5]} 16. d4 {[%clk 0:03:03.4]} 16...
gxf3 {[%clk 0:01:59.4]} 17. Qxf3 {[%clk 0:03:04.3]} 17... Ng6 {[%clk 0:01:56.7]}
18. c5 {[%clk 0:03:02.3]} 18... Bc7 {[%clk 0:01:54]} 19. b4 {[%clk 0:02:56.9]}
19... Nb7 {[%clk 0:01:47.5]} 20. Bc4+ {[%clk 0:02:55.7]} 20... Kg7 {[%clk
0:01:41.4]} 21. Bb2 {[%clk 0:02:55.8]} 21... h6 {[%clk 0:01:28.2]} 22. Nd2
{[%clk 0:02:48.3]} 22... Bd7 {[%clk 0:01:17.5]} 23. Rab1 {[%clk 0:02:46.5]}
23... Kh7 {[%clk 0:01:16.7]} 24. d5 {[%clk 0:02:44.6]} 24... Be5 {[%clk
0:01:15.9]} 25. Rxe5 {[%clk 0:02:28.2]} 25... Nxe5 {[%clk 0:01:16]} 26. Bxe5
{[%clk 0:02:29.1]} 26... Qxe5 {[%clk 0:01:13.8]} 27. dxc6 {[%clk 0:02:29.5]}
27... Nxc5 {[%clk 0:00:58.5]} 28. bxc5 {[%clk 0:02:27.3]} 28... Be6 {[%clk
0:00:51.8]} 29. Rb7+ {[%clk 0:02:21.5]} 29... Kh8 {[%clk 0:00:51.2]} 30. Bxe6
{[%clk 0:02:16]} 30... Qxe6 {[%clk 0:00:44.5]} 31. Qc3+ {[%clk 0:02:13.8]} 31...
Rf6 {[%clk 0:00:39.4]} 32. Nf1 {[%clk 0:01:58.8]} 32... Rf8 {[%clk 0:00:16.2]}
33. c7 {[%clk 0:01:54.7]} 33... Qc6 {[%clk 0:00:14]} 34. Rb8 {[%clk 0:01:45.7]}
34... Kg7 {[%clk 0:00:08.3]} 35. Rxf8 {[%clk 0:01:35.5]} 35... Kxf8 {[%clk
0:00:07.2]} 36. c8=Q+ {[%clk 0:01:35.6]} 36... Qxc8 {[%clk 0:00:07.3]} 37. Qxf6+
{[%clk 0:01:36.1]} 1-0

[Event "*** SCC Grand Prix: Titled Tuesday Blitz"]
[Site "Chess.com"]
[Date "2020.06.02"]
[Round "2"]
[White "reniite"]
[Black "rakshi2005"]
[Result "0-1"]
[WhiteElo "1815"]
[BlackElo "2339"]
[TimeControl "180+1"]
[EndTime "10:16:16 PDT"]
[Termination "rakshi2005 won by resignation"]

1. e4 {[%clk 0:02:53.1]} 1... e5 {[%clk 0:02:59]} 2. Nf3 {[%clk 0:02:52.2]} 2...
Nc6 {[%clk 0:02:58.9]} 3. Nc3 {[%clk 0:02:50.1]} 3... Nf6 {[%clk 0:02:57.3]} 4.
Bb5 {[%clk 0:02:49.3]} 4... Bb4 {[%clk 0:02:56.8]} 5. O-O {[%clk 0:02:48.7]}
5... Bxc3 {[%clk 0:02:56.7]} 6. dxc3 {[%clk 0:02:44.7]} 6... d6 {[%clk 0:02:57]}
7. Bd3 {[%clk 0:02:42.3]} 7... O-O {[%clk 0:02:56.5]} 8. Bg5 {[%clk 0:02:41.1]}
8... Ne7 {[%clk 0:02:55]} 9. Bxf6 {[%clk 0:02:31.8]} 9... gxf6 {[%clk
0:02:55.9]} 10. Nh4 {[%clk 0:02:30.8]} 10... Ng6 {[%clk 0:02:42.8]} 11. Qh5
{[%clk 0:02:08.4]} 11... Kh8 {[%clk 0:02:19.3]} 12. g3 {[%clk 0:02:00.4]} 12...
Rg8 {[%clk 0:02:11.7]} 13. f4 {[%clk 0:01:49]} 13... exf4 {[%clk 0:01:52.7]} 14.
Nf5 {[%clk 0:00:47.9]} 14... fxg3 {[%clk 0:01:42]} 15. Nxg3 {[%clk 0:00:42.1]}
15... Ne5 {[%clk 0:01:36.6]} 16. Be2 {[%clk 0:00:40.2]} 16... Rg7 {[%clk
0:01:34.5]} 17. Rf4 {[%clk 0:00:37.4]} 17... Qg8 {[%clk 0:01:28.5]} 18. Kg2
{[%clk 0:00:30]} 18... Rg5 {[%clk 0:01:17.5]} 19. Qh6 {[%clk 0:00:26.4]} 19...
Rg6 {[%clk 0:01:08.6]} 20. Qh4 {[%clk 0:00:25.9]} 20... Qg7 {[%clk 0:01:06.6]}
21. Raf1 {[%clk 0:00:23.7]} 21... Rh6 {[%clk 0:01:01.9]} 22. Rxf6 {[%clk
0:00:14.5]} 22... Rxh4 {[%clk 0:00:58.8]} 0-1